bitfinex-derivatives/quotes_ETHF0:USTF0_20250903
["timestamp","ask_amount","ask_price","bid_price","bid_amount"]
[1756873298531,0.4349,4322.5,4322.4,1.34516768]
[1756873298937,0.3246,4323.0,4322.4,1.34516768]
[1756873299142,0.307,4322.9,4322.5,0.236]
[1756873300245,0.1279,4323.0,4322.5,0.236]
[1756873300734,0.307,4322.9,4322.5,0.236]
[1756873300936,0.1279,4323.0,4322.5,0.236]
[1756873301339,0.3065,4322.9,4322.8,3.2078]
[1756873302746,0.5078,4322.9,4322.8,3.2078]
[1756873302940,0.5078,4322.9,4322.8,3.4438]
[1756873303342,0.3065,4322.9,4322.8,3.4438]
[1756873303544,0.429,4323.0,4322.8,3.4438]
[1756873303943,0.3065,4323.0,4322.8,3.4438]
[1756873305644,0.3292,4323.5,4322.8,3.4438]
[1756873305844,0.848,4323.5,4323.4,3.2078]
[1756873310464,0.5361,4323.0,4322.9,3.2078]
[1756873310756,0.8426,4323.0,4322.9,3.2078]
[1756873317556,0.8426,4322.5,4322.4,3.2078]
[1756873319460,1.44063154,4322.5,4322.4,3.2078]
[1756873321356,1.67563154,4322.5,4322.4,3.2078]
[1756873323159,0.59803154,4322.5,4322.4,3.49878648]
[1756873323358,0.3065,4324.1,4323.1,0.41632]
[1756873323565,0.3065,4324.4,4324.0,1.34516768]
[1756873323767,0.3065,4324.8,4324.3,3.2078]
[1756873323958,0.3065,4324.8,4324.4,1.63609692]
[1756873324158,0.3065,4324.8,4324.5,0.52692924]
[1756873324354,0.3065,4324.9,4324.6,0.29092924]
[1756873324558,0.3065,4324.9,4324.8,3.2078]
[1756873324759,0.3065,4324.9,4324.8,3.49872924]
[1756873325164,0.3065,4324.9,4324.8,4.84389692]
[1756873325571,0.3065,4324.9,4324.8,3.49872924]
[1756873326968,0.3065,4324.9,4324.8,3.73472924]
[1756873328370,0.3238,4325.5,4324.8,3.73472924]
[1756873328568,0.3065,4325.4,4324.9,0.29092924]
[1756873328768,0.1225,4325.0,4324.8,3.4438]
[1756873328968,0.429,4325.0,4324.9,0.2903547]
[1756873329165,0.1225,4325.5,4324.9,0.2903547]
[1756873329372,0.3065,4325.4,4325.3,3.2078]
[1756873329564,0.3065,4325.4,4325.3,3.4981547]
[1756873330972,0.3065,4325.7,4325.3,3.4981547]
[1756873331172,0.3065,4325.7,4325.3,3.2078]
[1756873331373,0.3065,4325.7,4325.4,0.236]
[1756873331769,0.2966,4325.9,4325.4,0.236]
[1756873331973,0.1225,4326.0,4325.5,40.8]
[1756873332471,0.2966,4325.9,4325.5,40.8]
[1756873332674,0.1225,4326.0,4325.5,40.8]
[1756873332870,0.2966,4325.9,4325.5,40.8]
[1756873333171,0.1225,4326.0,4325.5,40.8]
[1756873333370,0.2966,4325.9,4325.5,40.8]
[1756873333575,0.1225,4326.0,4325.5,40.8]
[1756873334067,0.2966,4325.9,4325.5,40.8]
[1756873334268,0.1225,4326.0,4325.5,41.036]
[1756873334470,0.5037,4325.9,4325.5,0.236]
[1756873334670,0.704,4325.4,4325.3,3.2078]
[1756873334868,0.704,4325.4,4325.3,3.4438]
[1756873335676,0.70261578,4325.4,4325.3,3.4438]
[1756873335872,0.70261578,4325.4,4325.3,3.4451]
[1756873336072,0.70261578,4325.4,4325.3,3.4464]
[1756873336880,0.70261578,4325.4,4325.3,3.2104]
[1756873337181,0.70261578,4325.4,4325.3,3.2078]
[1756873337378,0.70261578,4325.4,4325.3,3.2091]
[1756873338482,0.70261578,4325.4,4325.3,3.2104]
[1756873340180,0.70261578,4325.4,4325.3,3.2091]
[1756873340481,0.50231578,4325.4,4325.3,3.2104]
[1756873341576,0.70261578,4325.4,4325.3,3.2104]
[1756873341776,0.70261578,4325.4,4325.3,3.2091]
[1756873344079,0.29521578,4325.4,4325.3,3.2104]
[1756873344380,0.29521578,4325.4,4325.3,3.2112]
[1756873345473,0.29521578,4325.4,4325.3,4.30890493]
[1756873345778,0.704,4325.9,4325.8,0.0026]
[1756873347280,0.2966,4325.9,4325.8,0.0026]
[1756873347479,0.2966,4325.9,4325.8,0.0034]
[1756873348185,0.2966,4325.9,4325.8,3.2112]
[1756873349785,0.4191,4326.5,4326.4,0.0034]
[1756873350087,0.6262,4326.5,4326.4,4.30810493]
[1756873350683,0.4191,4326.5,4326.4,4.30810493]
[1756873350987,0.4191,4326.5,4326.4,4.30890493]
[1756873352079,0.4191,4326.5,4326.4,4.54390493]
[1756873352387,0.4191,4326.5,4326.4,4.83454048]
[1756873352584,0.4191,4326.5,4326.4,4.59874048]
[1756873352782,0.6262,4326.5,4326.4,3.73603555]
[1756873352977,0.8265,4326.5,4326.4,4.83374048]
[1756873353289,0.8265,4326.5,4326.4,4.83114048]
[1756873353680,0.8265,4326.5,4326.4,4.83244048]
[1756873353988,0.8265,4326.5,4326.4,4.59744048]
[1756873354180,0.8265,4326.5,4326.4,3.49843555]
[1756873354985,0.8265,4326.5,4326.4,0.29063555]
[1756873357191,0.8265,4326.5,4326.4,1.38964048]
[1756873359488,0.8265,4326.5,4326.4,1.39028318]
[1756873360085,0.8265,4326.5,4326.4,1.39158318]
[1756873360486,3.3303,4327.0,4326.9,0.0026]
[1756873360692,4.3125978,4327.0,4326.9,1.10030493]
[1756873360990,4.6091978,4327.0,4326.9,1.10030493]
[1756873361596,4.6091978,4327.0,4326.9,1.09900493]
[1756873362694,0.5345,4326.5,4326.4,3.2078]
[1756873362889,0.8337,4326.5,4326.4,3.49902763]
[1756873365892,0.8337,4326.5,4326.4,0.29122763]
[1756873368194,0.4164,4326.5,4326.4,0.29122763]
[1756873368697,0.6234,4326.5,4326.4,0.29122763]
[1756873369400,0.6234,4326.5,4326.4,3.49902763]
[1756873369592,0.4164,4326.5,4326.4,3.49902763]
[1756873372400,0.6234,4326.5,4326.4,3.49902763]
[1756873372789,0.8337,4326.5,4326.4,3.49902763]
[1756873376096,0.4164,4326.5,4326.4,4.59673256]
[1756873376703,0.6234,4326.5,4326.4,4.59673256]
[1756873378502,0.8337,4326.5,4326.4,4.59673256]
[1756873380210,0.8337,4326.5,4326.4,4.59745765]
[1756873382602,0.8337,4326.5,4326.4,4.59726766]
[1756873383501,0.4164,4326.5,4326.4,4.59726766]
[1756873387507,0.6234,4326.5,4326.4,4.59886766]
[1756873388016,0.4164,4326.5,4326.4,4.59886766]
[1756873389714,0.6234,4326.5,4326.4,4.59886766]
[1756873389916,0.4164,4326.5,4326.4,4.59886766]
[1756873390208,0.2992,4326.5,4326.4,4.59886766]
[1756873390514,0.2992,4326.7,4326.4,4.59886766]
[1756873390714,0.2992,4326.7,4326.6,0.0016]
[1756873390902,0.2992,4326.7,4326.6,0.29336273]
[1756873394122,0.5062,4326.7,4326.6,0.29336273]
[1756873394319,0.714,4326.7,4326.6,0.29336273]
[1756873395523,0.5062,4326.7,4326.6,0.29336273]
[1756873397324,0.2992,4326.7,4326.6,0.29336273]
[1756873399928,0.4953,4326.7,4326.6,0.29336273]
[1756873400129,0.2992,4326.7,4326.6,0.29336273]
[1756873401327,0.7031,4326.7,4326.6,0.29336273]
[1756873401523,0.7031,4326.7,4326.6,0.29296273]
[1756873402129,0.7031,4326.7,4326.6,0.29176273]
[1756873402330,0.7031,4326.7,4326.6,0.29296273]
[1756873402829,0.7031,4326.7,4326.6,0.29416273]
[1756873404332,0.7031,4326.7,4326.6,0.29176273]
[1756873405938,1.2813275,4326.7,4326.6,0.29176273]
[1756873406635,1.5163275,4326.7,4326.6,0.29176273]
[1756873407235,1.2813275,4326.7,4326.6,0.29176273]
[1756873407433,1.2813275,4326.7,4326.6,0.29296273]
[1756873408533,1.2813275,4326.7,4326.6,0.29176273]
[1756873410032,0.8774275,4326.7,4326.6,0.29296273]
[1756873410336,1.2813275,4326.7,4326.6,0.29416273]
[1756873411933,0.7031,4326.7,4326.6,0.29416273]
[1756873413641,0.7031,4326.7,4326.6,0.0024]
[1756873413832,0.7031,4326.7,4326.6,0.29508657]
[1756873417337,0.2992,4326.7,4326.6,4.52621657]
[1756873417529,0.3091,4327.4,4326.6,4.94220657]
[1756873417838,0.5052,4327.4,4327.3,4.55030072]
[1756873418036,0.3091,4327.4,4327.3,5.07798729]
[1756873418439,0.5052,4327.4,4327.3,5.07798729]
[1756873419246,0.3091,4327.4,4327.3,5.07798729]
[1756873420230,3.2078,4328.6,4327.3,9.30907729]
[1756873420231,0.235,4328.3,4327.3,9.30907729]
[1756873420436,2.3091,4327.7,4327.6,0.0024]
[1756873420637,2.3091,4327.7,4327.6,0.53008657]
[1756873421342,2.3091,4327.7,4327.6,41.33008657]
[1756873422346,2.0,4327.7,4327.6,45.56115657]
[1756873422538,0.2959,4328.1,4327.6,45.56115657]
[1756873422539,0.1172,4328.5,4327.6,46.67018729]
[1756873422843,0.3243,4328.5,4328.4,2.04880072]
[1756873423044,0.5226,4328.5,4328.4,2.57648729]
[1756873423639,0.3243,4328.5,4328.4,2.57648729]
[1756873424037,0.1978,4328.5,4328.4,2.57648729]
[1756873424641,0.4937,4328.5,4328.4,2.57648729]
[1756873425039,0.8185,4328.5,4328.4,0.94008657]
[1756873425245,0.8185,4328.5,4328.4,0.73878657]
[1756873425545,0.8185,4328.5,4328.4,0.29268657]
[1756873425746,0.8185,4328.5,4328.3,3.2078]
[1756873425946,0.692,4328.4,4328.3,3.2078]
[1756873426147,0.692,4328.4,4328.3,3.49901164]
[1756873427449,0.692,4328.4,4328.3,3.4189]
[1756873429747,0.692,4328.4,4328.1,0.235]
[1756873429748,0.3961,4327.8,4327.7,3.2078]
[1756873430052,0.692,4327.8,4327.7,3.4189]
[1756873431451,0.692,4327.8,4327.7,3.9165]
[1756873431652,0.4937,4327.8,4327.7,3.9165]
[1756873431854,0.4224,4328.0,4327.7,3.6202]
[1756873432052,0.8185,4328.0,4327.9,0.4124]
[1756873432254,0.8185,4328.0,4327.9,0.7087]
[1756873432453,0.6202,4328.0,4327.9,0.7087]
[1756873432749,0.8185,4328.0,4327.9,0.4124]
[1756873432950,0.8185,4328.0,4327.9,0.6474]
[1756873433153,0.2959,4328.0,4327.9,0.9437]
[1756873433452,0.2959,4328.3,4327.9,0.6474]
[1756873433652,0.2959,4328.3,4328.2,0.4124]
[1756873433854,0.2959,4328.3,4328.2,0.7087]
[1756873434557,0.4937,4328.3,4328.2,0.7087]
[1756873436452,0.2959,4328.3,4328.2,0.7087]
[1756873436952,0.4937,4328.3,4328.2,0.7087]
[1756873437146,0.2959,4328.4,4328.3,0.2963]
[1756873437346,0.6202,4328.5,4328.4,0.4124]
[1756873437855,0.8185,4328.5,4328.4,0.4124]
[1756873438352,0.8185,4328.5,4328.4,0.7087]
[1756873439055,3.3778,4328.9,4328.4,2.04880072]
[1756873439349,4.0698,4328.9,4328.8,0.4124]
[1756873443957,3.3778,4328.9,4328.8,0.7087]
[1756873444262,3.7015,4329.4,4329.3,0.7087]
[1756873444557,3.8998,4329.4,4329.2,1.34010072]
[1756873444758,3.8998,4329.4,4329.2,40.8]
[1756873445054,0.2959,4329.3,4329.2,40.8]
[1756873445260,0.2959,4329.3,4329.2,41.09081229]
[1756873446950,0.2959,4329.3,4329.2,40.8]
[1756873447147,0.2959,4329.3,4329.2,41.38711981]
[1756873447348,3.2078,4329.4,4329.3,0.4124]
[1756873447560,3.2078,4329.4,4329.3,0.99951981]
[1756873448154,3.7015,4329.4,4329.3,0.99951981]
[1756873448357,3.8998,4329.4,4329.3,0.70331981]
[1756873449262,3.8998,4329.4,4329.3,0.52591981]
[1756873449765,3.8998,4329.4,4329.3,0.29091981]
[1756873451362,3.8998,4329.4,4329.3,0.69371981]
[1756873451656,3.8998,4329.4,4329.3,0.98931981]
[1756873452357,3.7015,4329.4,4329.3,0.98931981]
[1756873452549,3.5037,4329.4,4329.3,0.98931981]
[1756873453760,3.6983,4329.4,4329.3,0.98931981]
[1756873453962,3.9079,4329.4,4329.3,0.5261291]
[1756873454162,3.9079,4329.4,4329.3,0.7219291]
[1756873454566,3.9079,4329.4,4329.3,0.9289291]
[1756873457865,3.6983,4329.4,4329.3,1.2245291]
[1756873459572,0.4905,4329.4,4329.3,2.3199834]
[1756873459767,0.1265,4330.0,4329.3,2.3199834]
[1756873459967,0.8329,4330.0,4329.9,1.2912543]
[1756873460471,0.8329,4330.0,4329.9,1.0954543]
[1756873461069,0.8329,4330.0,4329.9,1.2912543]
[1756873462072,0.8329,4330.0,4329.9,1.78919379]
[1756873463268,0.8329,4330.0,4329.9,2.31979379]
[1756873464163,0.4968,4330.0,4329.9,2.31979379]
[1756873464363,0.3022,4330.0,4329.9,2.31979379]
[1756873467061,0.1265,4330.5,4330.0,0.2956]
[1756873467272,0.6233,4330.5,4330.4,1.7938543]
[1756873467469,0.6233,4330.5,4330.4,2.31879379]
[1756873467674,0.8329,4330.5,4330.4,2.31879379]
[1756873467967,0.6233,4330.5,4330.4,2.31879379]
[1756873468173,0.3022,4330.5,4330.4,2.31879379]
[1756873468378,0.4968,4330.9,4330.8,0.4028]
[1756873468575,0.4968,4330.9,4330.8,2.02319379]
[1756873468967,0.7064,4330.9,4330.8,2.02319379]
[1756873469166,0.7064,4330.9,4330.8,1.38604442]
[1756873469371,0.7064,4330.9,4330.8,1.62004442]
[1756873469776,0.7064,4330.9,4330.8,1.81584442]
[1756873470074,0.7064,4330.9,4330.8,1.5252543]
[1756873471062,0.7064,4330.9,4330.8,1.2912543]
[1756873471276,0.7064,4330.9,4330.8,1.5252543]
[1756873472976,0.4042,4330.9,4330.8,0.234]
[1756873473183,0.7064,4330.9,4330.8,1.3294543]
[1756873473474,0.7064,4330.9,4330.8,1.7322543]
[1756873473676,0.7064,4330.9,4330.8,2.0278543]
[1756873475177,0.7064,4330.9,4330.8,1.7322543]
[1756873475677,0.7064,4330.9,4330.8,42.5322543]
[1756873476080,0.7064,4330.9,4330.8,40.9958]
[1756873476279,0.7064,4330.9,4330.8,42.3252543]
[1756873476577,0.7064,4330.9,4330.8,42.6208543]
[1756873479087,0.7064,4330.9,4330.8,42.3252543]
[1756873479486,0.7064,4330.9,4330.8,42.6208543]
[1756873481186,0.7064,4330.9,4330.8,42.91354417]
[1756873481591,0.4968,4330.9,4330.8,42.91354417]
[1756873482090,0.4968,4330.9,4330.8,46.12134417]
[1756873482678,0.1271,4331.5,4331.4,0.2135]
[1756873482879,3.2078,4331.6,4331.5,0.7217]
[1756873482880,3.405,4331.6,4331.5,0.7217]
[1756873483084,3.405,4331.6,4331.5,0.234]
[1756873483085,3.6061,4331.6,4331.5,0.234]
[1756873483390,3.9134,4331.6,4331.5,0.234]
[1756873483683,3.9134,4331.6,4330.9,0.2961]
[1756873483684,0.828,4331.5,4331.1,1.0954543]
[1756873483890,0.7056,4331.3,4331.2,0.52661558]
[1756873484088,0.7056,4331.3,4331.2,0.73871558]
[1756873484288,0.7056,4331.3,4331.2,0.71821558]
[1756873484489,0.7056,4331.3,4331.2,0.95221558]
[1756873484688,0.3073,4331.4,4331.2,0.95221558]
[1756873484889,0.3073,4331.3,4331.2,0.6596]
[1756873485090,0.3073,4331.4,4331.2,2.04765158]
[1756873485386,3.6061,4331.6,4331.5,0.2121]
[1756873485593,3.6061,4331.6,4331.5,1.5415543]
[1756873485890,3.9134,4331.6,4331.5,1.5415543]
[1756873486086,3.9134,4331.6,4331.5,1.7550543]
[1756873486591,3.9134,4331.6,4331.5,2.0511543]
[1756873487194,3.9134,4331.6,4331.5,1.7550543]
[1756873488088,3.9134,4331.6,4331.5,1.5415543]
[1756873488989,0.5207,4331.0,4330.9,0.2121]
[1756873489198,0.5207,4331.0,4330.9,0.73896486]
[1756873489393,0.5207,4331.0,4330.9,0.95246486]
[1756873489693,0.828,4331.0,4330.9,0.95246486]
[1756873490993,0.828,4331.0,4330.9,1.24856486]
[1756873493293,0.3073,4331.0,4330.9,1.24856486]
[1756873493996,0.5045,4331.4,4331.3,0.4256]
[1756873494192,0.5045,4331.4,4331.3,2.34401916]
[1756873494696,0.7056,4331.4,4331.3,2.34401916]
[1756873495383,0.7056,4331.4,4331.3,2.34438303]
[1756873496397,0.3073,4331.4,4331.3,2.34438303]
[1756873496697,0.7056,4331.4,4331.3,2.11038303]
[1756873496897,0.7056,4331.4,4331.3,2.04828303]
[1756873497396,0.7056,4331.4,4331.3,2.34438303]
[1756873497597,0.7056,4331.4,4331.3,2.04828303]
[1756873498597,0.7056,4331.4,4331.3,1.81428303]
[1756873498899,0.7056,4331.4,4331.3,0.73932873]
[1756873500191,0.7056,4331.4,4331.3,0.95282873]
[1756873500389,0.7056,4331.4,4331.3,0.52722873]
[1756873500798,0.7056,4331.4,4331.3,0.73932873]
[1756873501386,0.7056,4331.4,4331.3,0.95282873]
[1756873501801,0.7056,4331.4,4331.3,0.71882873]
[1756873502091,0.7056,4331.4,4331.3,0.95282873]
[1756873502296,0.7056,4331.4,4331.3,1.24932873]
[1756873502496,0.7056,4331.4,4331.3,0.73932873]
[1756873502695,0.7056,4331.4,4331.3,0.29322873]
[1756873505087,0.7056,4331.4,4331.3,1.81428303]
[1756873505293,0.7056,4331.4,4331.3,2.11078303]
[1756873505492,0.7056,4331.4,4331.3,1.81428303]
[1756873505693,0.7056,4331.4,4331.3,2.04828303]
[1756873507195,0.7056,4331.4,4331.3,2.34478303]
[1756873507598,0.7056,4331.4,4331.3,2.04828303]
[1756873507794,0.7056,4331.4,4331.3,1.81428303]
[1756873507994,0.7056,4331.4,4331.3,0.52722873]
[1756873508195,0.7056,4331.4,4331.3,0.73932873]
[1756873509504,0.7056,4331.4,4331.3,0.29322873]
[1756873510105,1.8010543,4331.4,4331.3,0.29322873]
[1756873510704,0.7056,4331.4,4331.3,0.50532873]
[1756873510898,0.7056,4331.4,4331.3,0.29322873]
[1756873513505,0.7056,4331.4,4331.3,0.50302873]
[1756873513809,0.7056,4331.4,4331.3,0.29322873]
[1756873514406,1.8010543,4331.4,4331.3,0.29322873]
[1756873514808,1.8010543,4331.4,4331.3,0.29491803]
[1756873515109,0.2906,4330.4,4330.3,3.2078]
[1756873515303,0.7021,4330.4,4330.3,3.2078]
[1756873515508,0.7021,4330.4,4330.3,3.6166]
[1756873515904,0.7021,4330.4,4330.3,3.9127]
[1756873516105,0.7021,4330.4,4330.3,3.6166]
[1756873516604,0.7021,4330.4,4330.3,3.9127]
[1756873517507,0.4971,4330.4,4330.3,3.9127]
[1756873518410,0.2906,4330.4,4330.3,3.9127]
[1756873518710,0.4971,4330.4,4330.3,3.9127]
[1756873519110,0.2906,4330.4,4330.3,4.1467]
[1756873519408,3.4143,4330.9,4330.8,0.2098]
[1756873519609,3.9099,4330.9,4330.8,0.2098]
[1756873519808,0.5306,4330.5,4330.4,0.2098]
[1756873520211,3.2078,4330.9,4330.4,0.4088]
[1756873520409,3.9099,4330.9,4330.8,0.4088]
[1756873521512,1.46000053,4331.5,4331.3,0.4088]
[1756873521513,0.7021,4331.4,4331.3,0.4088]
[1756873522902,0.2906,4331.4,4331.3,0.7049]
[1756873523610,0.4971,4331.4,4331.3,0.7049]
[1756873524308,0.2906,4331.4,4331.3,0.7049]
[1756873527111,0.2906,4331.4,4331.3,0.99528081]
[1756873528013,0.4971,4331.4,4331.3,0.99528081]
[1756873528209,0.2906,4331.4,4331.3,4.20308081]
[1756873528608,0.4971,4331.4,4331.3,4.20308081]
[1756873528908,0.7021,4331.4,4331.3,3.70798081]
[1756873529106,0.7021,4331.4,4331.3,3.73218081]
[1756873529406,0.7021,4331.4,4331.3,3.90698081]
[1756873529612,0.7021,4331.4,4331.3,4.14098081]
[1756873532111,0.7021,4331.4,4331.3,0.29038081]
[1756873535415,0.4971,4331.4,4331.3,0.7047]
[1756873535718,0.4971,4331.4,4331.3,2.33161514]
[1756873535918,0.4971,4331.4,4331.3,0.99401461]
[1756873536818,0.2906,4331.4,4331.3,0.99401461]
[1756873537016,0.2906,4331.8,4331.3,2.03571514]
[1756873537218,0.2906,4331.8,4331.7,0.7047]
[1756873537415,3.4984,4331.9,4331.8,0.2959]
[1756873537615,0.2906,4331.9,4331.8,0.99401461]
[1756873537913,3.2078,4332.4,4331.8,41.49811461]
[1756873538120,0.2906,4332.3,4332.2,0.4088]
[1756873538317,0.2906,4332.3,4332.2,0.69811461]
[1756873538713,0.2906,4332.3,4332.2,0.99401461]
[1756873539012,0.4971,4332.3,4332.2,0.99401461]
[1756873540623,0.2906,4332.3,4332.2,2.33161514]
[1756873541817,0.4971,4332.3,4332.2,2.33161514]
[1756873542017,0.4971,4332.3,4332.2,0.99401461]
[1756873542417,3.5047,4332.4,4332.3,0.7017]
[1756873542619,3.5047,4332.4,4332.3,1.22501461]
[1756873543419,3.2078,4332.9,4332.3,0.93461461]
[1756873543624,3.2078,4332.9,4332.7,0.7017]
[1756873543926,0.1213,4334.5,4332.9,0.4113]
[1756873543927,0.8343,4333.0,4332.9,0.4113]
[1756873544123,0.8343,4333.0,4332.9,0.93402274]
[1756873545223,0.8343,4333.5,4333.4,0.4113]
[1756873545527,0.2969,4333.9,4333.5,0.2904]
[1756873545721,0.234,4334.1,4333.9,0.4113]
[1756873545722,0.5352,4334.0,4333.9,0.4113]
[1756873545925,0.5352,4334.0,4333.9,0.2083]
[1756873546129,0.6236,4334.0,4333.9,0.4113]
[1756873546430,0.8321,4334.0,4333.9,0.4113]
[1756873546927,1.33760053,4334.9,4333.9,0.4113]
[1756873546928,0.5045,4335.4,4334.2,0.2904]
[1756873547126,0.5045,4335.4,4333.7,0.235]
[1756873547127,0.4161,4334.1,4333.7,0.235]
[1756873547326,0.1213,4334.5,4333.5,0.2904]
[1756873547327,0.8343,4334.0,4333.9,0.4113]
[1756873547525,0.2076,4334.0,4333.9,0.2083]
[1756873547830,0.2076,4334.0,4333.3,3.9095]
[1756873547831,0.713,4333.4,4333.3,3.9095]
[1756873548229,0.5045,4333.4,4333.3,3.9095]
[1756873548527,0.5045,4333.4,4333.3,44.7095]
[1756873549229,0.5045,4333.4,4333.3,41.5017]
[1756873549830,0.5045,4333.4,4333.3,41.2113]
[1756873550026,0.4182,4334.0,4333.4,0.2904]
[1756873550231,0.8343,4334.0,4333.9,0.4113]
[1756873550729,0.8343,4334.0,4333.5,0.237]
[1756873551126,0.8343,4334.0,4333.5,0.5274]
[1756873551324,0.5374,4334.0,4333.9,0.2083]
[1756873551834,0.8343,4334.0,4333.9,0.2083]
[1756873552823,0.2969,4333.9,4333.5,1.33760053]
[1756873553022,0.5045,4333.6,4333.5,2.03930053]
[1756873553626,0.713,4333.6,4333.5,1.74890053]
[1756873553931,0.713,4333.4,4333.3,44.0078]
[1756873554926,0.713,4333.4,4333.3,3.6191]
[1756873555828,0.713,4333.4,4333.2,40.8]
[1756873556029,0.2969,4333.3,4333.2,40.8]
[1756873557933,0.2969,4333.3,4333.2,41.0904]
[1756873558433,0.4182,4333.5,4333.4,0.7017]
[1756873558628,0.2969,4333.5,4333.4,0.7017]
[1756873559330,0.6258,4333.5,4333.4,0.7017]
[1756873560732,0.713,4333.1,4333.0,0.237]
[1756873560936,0.4161,4332.9,4332.8,3.4448]
[1756873561133,0.713,4332.9,4332.8,3.2078]
[1756873561331,0.1213,4332.5,4332.4,0.2083]
[1756873561530,0.6267,4332.5,4332.4,0.4113]
[1756873561731,0.8343,4332.5,4332.4,0.7017]
[1756873562430,0.2969,4332.8,4332.4,0.4113]
[1756873562631,3.2078,4332.9,4332.8,0.2904]
[1756873562936,3.2078,4332.9,4332.8,0.7017]
[1756873563334,0.2969,4333.2,4333.1,0.4113]
[1756873563533,3.5047,4333.4,4333.3,0.4113]
[1756873563733,3.5047,4333.4,4333.3,0.7017]
[1756873563924,3.2078,4333.4,4333.3,0.7017]
[1756873564124,0.2969,4333.7,4333.4,0.2904]
[1756873564326,0.2969,4333.7,4333.6,0.7017]
[1756873564937,0.2969,4334.0,4333.9,0.4113]
[1756873565237,0.8343,4334.0,4333.9,0.4113]
[1756873567633,0.6258,4334.0,4333.9,0.7017]
[1756873567847,0.8343,4334.0,4333.9,0.4113]
[1756873568037,0.8343,4334.0,4333.5,3.7352]
[1756873568343,0.4161,4333.6,4333.5,3.6191]
[1756873568536,0.713,4333.6,4333.5,3.6191]
[1756873568734,0.713,4333.6,4333.5,44.7095]
[1756873570548,0.2969,4333.9,4333.5,48.33726]
[1756873570840,0.2969,4333.8,4333.5,3.2078]
[1756873571040,0.4161,4333.8,4333.7,0.4113]
[1756873571346,0.713,4333.8,4333.7,0.4113]
[1756873573154,0.713,4333.8,4333.7,0.2083]
[1756873579551,0.4161,4333.8,4333.5,3.2078]
[1756873579757,0.4182,4333.6,4333.5,3.2078]
[1756873580058,0.7174,4333.6,4333.5,3.2078]
[1756873580256,0.8421,4333.5,4333.4,0.4298]
[1756873582356,0.8421,4333.5,4333.4,0.1928]
[1756873582951,0.8421,4333.5,4333.3,40.8]
[1756873583146,0.2992,4333.4,4333.3,40.8]
[1756873583351,0.4182,4333.3,4333.2,1.32977582]
[1756873583558,0.7174,4333.3,4333.2,1.52257582]
[1756873583957,0.7174,4333.3,4333.2,40.8]
[1756873584353,0.4182,4332.6,4332.5,0.236]
[1756873584552,0.7174,4332.1,4332.0,4.49437582]
[1756873584761,0.7174,4332.1,4332.0,45.73257582]
[1756873585259,0.7174,4332.1,4332.0,45.53037582]
[1756873585754,0.7174,4332.1,4332.0,4.49437582]
[1756873585954,0.7174,4332.1,4332.0,5.22367582]
[1756873586753,0.7174,4332.1,4332.0,3.6028]
[1756873586962,0.7174,4332.1,4332.0,3.6366]
[1756873587151,0.7174,4332.1,4331.9,0.236]
[1756873587356,0.5429,4332.0,4331.8,0.236]
[1756873587655,0.5429,4332.0,4331.9,0.395]
[1756873588156,0.8421,4332.0,4331.9,0.395]
[1756873588356,0.8421,4332.0,4331.9,0.6861]
[1756873588546,0.632,4332.0,4331.9,0.6861]
[1756873588750,0.2992,4332.0,4331.9,0.6861]
[1756873588950,0.632,4332.5,4332.4,0.395]
[1756873589158,0.632,4332.5,4332.4,0.6861]
[1756873589855,0.2992,4332.8,4332.7,0.395]
[1756873590052,0.2992,4332.8,4332.7,1.77987582]
[1756873590362,0.5073,4332.8,4332.7,1.77987582]
[1756873590960,0.7174,4332.8,4332.7,0.395]
[1756873591260,0.8421,4332.5,4332.4,0.1928]
[1756873591760,0.8421,4332.5,4332.4,0.395]
[1756873592558,0.8421,4332.5,4332.4,0.1928]
[1756873593659,0.2992,4332.4,4332.3,1.52257582]
[1756873593865,0.7174,4332.4,4332.3,1.52257582]
[1756873594061,0.7174,4332.4,4332.3,1.72477582]
[1756873594259,0.7174,4332.4,4332.3,1.48877582]
[1756873597359,0.7174,4332.4,4332.3,1.77987582]
[1756873598458,0.5073,4332.4,4332.3,1.77987582]
[1756873598658,0.7174,4332.4,4332.3,1.48877582]
[1756873600466,0.7174,4332.4,4332.3,1.77987582]
[1756873601459,0.5073,4332.4,4332.3,1.77987582]
[1756873603463,0.2992,4332.4,4332.3,1.77987582]
[1756873603967,0.5095,4332.4,4332.3,1.77987582]
[1756873604569,0.2992,4332.4,4332.3,1.77987582]
[1756873605967,0.5095,4332.4,4332.3,1.77987582]
[1756873607062,0.7224,4332.4,4332.3,1.48877582]
[1756873608058,0.7224,4332.4,4332.3,0.1928]
[1756873608759,0.4232,4332.4,4332.0,3.2078]
[1756873608962,0.7287,4332.1,4331.6,0.236]
[1756873609171,0.5158,4331.7,4331.6,0.954]
[1756873611165,0.7287,4331.7,4331.6,0.4225]
[1756873611370,0.7287,4331.7,4331.6,0.6585]
[1756873612564,0.7287,4331.7,4331.6,0.954]
[1756873612868,0.4232,4331.7,4331.6,0.2105]
[1756873613265,0.4232,4331.7,4331.6,0.718]
[1756873613464,0.5158,4331.7,4331.6,0.718]
[1756873614666,0.7287,4331.7,4331.6,0.718]
[1756873614872,0.7287,4331.7,4331.6,0.4225]
[1756873615962,0.7287,4331.7,4331.5,41.036]
[1756873616167,0.3055,4331.6,4331.5,41.036]
[1756873616367,0.3055,4331.6,4331.5,40.8]
[1756873616571,0.3055,4331.6,4331.5,41.3305]
[1756873617475,0.6352,4332.0,4331.9,0.718]
[1756873617773,0.3055,4332.0,4331.9,1.81177582]
[1756873618371,0.3055,4332.4,4331.9,1.51627582]
[1756873618677,0.8534,4332.5,4332.4,0.2105]
[1756873619476,0.8534,4332.5,4332.4,0.4225]